fUST/lending_fUST_20260501
["ID","MTS","AMOUNT","RATE_DAILY","PERIOD"]
[421433660,1777644640000,-669.71,0.00019178,2]
[421433662,1777644640000,-500.0,0.00019178,2]
[421433664,1777644640000,-500.0,0.00019178,2]
[421433663,1777644640000,-843.25,0.00019178,2]
[421433665,1777644640000,-600.87,0.00019178,2]
[421433678,1777644640000,-500.0,0.00019178,2]
[421433668,1777644640000,-500.0,0.00019178,2]
[421433667,1777644640000,-734.19,0.00019178,2]
[421433670,1777644640000,-500.0,0.00019178,2]
[421433677,1777644640000,-500.0,0.00019178,2]
[421433673,1777644640000,-500.0,0.00019178,2]
[421433674,1777644640000,-832.04,0.00019178,2]
[421433669,1777644640000,-500.0,0.00019178,2]
[421433672,1777644640000,-682.28,0.00019178,2]
[421433671,1777644640000,-500.0,0.00019178,2]
[421433676,1777644640000,-694.02,0.00019178,2]
[421433679,1777644640000,-500.0,0.00019178,2]
[421433681,1777644640000,-234.129045,0.00019178,2]
[421433680,1777644640000,-500.0,0.00019178,2]
[421433633,1777644640000,-500.0,0.00019178,2]
[421433666,1777644640000,-500.0,0.00019178,2]
[421433659,1777644640000,-500.0,0.00019178,2]
[421433675,1777644640000,-547.0404913,0.00019178,2]
[421433658,1777644640000,-823.52,0.00019178,2]
[421433637,1777644640000,-500.0,0.00019178,2]
[421433657,1777644640000,-3476.5,0.00019178,2]
[421433636,1777644640000,-500.0,0.00019178,2]
[421433638,1777644640000,-500.0,0.00019178,2]
[421433641,1777644640000,-500.0,0.00019178,2]
[421433640,1777644640000,-2199.16,0.00019178,2]
[421433643,1777644640000,-500.0,0.00019178,2]
[421433639,1777644640000,-500.0,0.00019178,2]
[421433642,1777644640000,-1513.69,0.00019178,2]
[421433645,1777644640000,-500.0,0.00019178,2]
[421433644,1777644640000,-360.27705724,0.00019178,2]
[421433647,1777644640000,-500.0,0.00019178,2]
[421433656,1777644640000,-500.0,0.00019178,2]
[421433646,1777644640000,-500.0,0.00019178,2]
[421433648,1777644640000,-500.0,0.00019178,2]
[421433652,1777644640000,-500.0,0.00019178,2]
[421433650,1777644640000,-500.0,0.00019178,2]
[421433654,1777644640000,-500.0,0.00019178,2]
[421433649,1777644640000,-189.74430113,0.00019178,2]
[421433653,1777644640000,-500.0,0.00019178,2]
[421433655,1777644640000,-500.0,0.00019178,2]
[421433723,1777644641000,-655.82,0.00019178,2]
[421433725,1777644641000,-500.0,0.00019178,2]
[421433719,1777644641000,-1152.38,0.00019178,2]
[421433720,1777644641000,-548.7,0.00019178,2]
[421433718,1777644641000,-1987.04,0.00019178,2]
[421433713,1777644641000,-500.0,0.00019178,2]
[421433716,1777644641000,-503.69,0.00019178,2]
[421433717,1777644641000,-500.0,0.00019178,2]
[421433721,1777644641000,-4144.66,0.00019178,2]
[421433724,1777644641000,-500.0,0.00019178,2]
[421433711,1777644641000,-500.0,0.00019178,2]
[421433714,1777644641000,-588.29635112,0.00019178,2]
[421433735,1777644641000,-500.0,0.00019178,2]
[421433731,1777644641000,-2956.18,0.00019178,2]
[421433726,1777644641000,-1732.49,0.00019178,2]
[421433727,1777644641000,-500.0,0.00019178,2]
[421433733,1777644641000,-500.0,0.00019178,2]
[421433728,1777644641000,-500.0,0.00019178,2]
[421433730,1777644641000,-500.0,0.00019178,2]
[421433732,1777644641000,-550.0,0.00019178,2]
[421433734,1777644641000,-500.0,0.00019178,2]
[421433729,1777644641000,-2051.05,0.00019178,2]
[421433738,1777644641000,-500.0,0.00019178,2]
[421433748,1777644641000,-500.0,0.00019178,2]
[421433739,1777644641000,-500.0,0.00019178,2]
[421433722,1777644641000,-936.94,0.00019178,2]
[421433736,1777644641000,-500.0,0.00019178,2]
[421433712,1777644641000,-1135.35,0.00019178,2]
[421433685,1777644641000,-527.42853905,0.00019178,2]
[421433708,1777644641000,-500.0,0.00019178,2]
[421433737,1777644641000,-500.0,0.00019178,2]
[421433682,1777644641000,-500.0,0.00019178,2]
[421433683,1777644641000,-500.0,0.00019178,2]
[421433684,1777644641000,-500.0,0.00019178,2]
[421433686,1777644641000,-500.0,0.00019178,2]
[421433687,1777644641000,-500.0,0.00019178,2]
[421433689,1777644641000,-500.0,0.00019178,2]
[421433688,1777644641000,-514.78,0.00019178,2]
[421433691,1777644641000,-500.0,0.00019178,2]
[421433690,1777644641000,-500.0,0.00019178,2]
[421433697,1777644641000,-629.86,0.00019178,2]
[421433694,1777644641000,-500.0,0.00019178,2]
[421433700,1777644641000,-598.4866656,0.00019178,2]
[421433693,1777644641000,-1723.668581,0.00019178,2]
[421433696,1777644641000,-1655.27,0.00019178,2]
[421433692,1777644641000,-5902.59,0.00019178,2]
[421433699,1777644641000,-500.0,0.00019178,2]
[421433698,1777644641000,-500.0,0.00019178,2]
[421433695,1777644641000,-500.0,0.00019178,2]
[421433701,1777644641000,-500.0,0.00019178,2]
[421433703,1777644641000,-701.25,0.00019178,2]
[421433702,1777644641000,-500.0,0.00019178,2]
[421433705,1777644641000,-549.58,0.00019178,2]
[421433704,1777644641000,-545.54,0.00019178,2]
[421433706,1777644641000,-500.0,0.00019178,2]
[421433709,1777644641000,-1229.07,0.00019178,2]
[421433707,1777644641000,-500.0,0.00019178,2]
[421433710,1777644641000,-1032.12,0.00019178,2]
[421433740,1777644641000,-1725.65,0.00019178,2]
[421433715,1777644641000,-500.0,0.00019178,2]
[421433743,1777644641000,-2600.84,0.00019178,2]
[421433776,1777644641000,-500.0,0.00019178,2]
[421433778,1777644641000,-500.0,0.00019178,2]
[421433785,1777644641000,-6410.91,0.00019178,2]
[421433775,1777644641000,-500.0,0.00019178,2]
[421433784,1777644641000,-795.09,0.00019178,2]
[421433777,1777644641000,-15580.814622,0.00019178,2]
[421433787,1777644641000,-500.0,0.00019178,2]
[421433779,1777644641000,-517.91444919,0.00019178,2]
[421433782,1777644641000,-3698.54,0.00019178,2]
[421433781,1777644641000,-609.54,0.00019178,2]
[421433786,1777644641000,-500.0,0.00019178,2]
[421433783,1777644641000,-1146.86,0.00019178,2]
[421433788,1777644641000,-227.19774078,0.00019178,2]
[421433789,1777644641000,-500.0,0.00019178,2]
[421433792,1777644641000,-500.0,0.00019178,2]
[421433791,1777644641000,-1197.01,0.00019178,2]
[421433790,1777644641000,-500.0,0.00019178,2]
[421433793,1777644641000,-500.0,0.00019178,2]
[421433800,1777644641000,-1000.0,0.00019178,2]
[421433795,1777644641000,-500.0,0.00019178,2]
[421433794,1777644641000,-612.62,0.00019178,2]
[421433799,1777644641000,-500.0,0.00019178,2]
[421433796,1777644641000,-982.28,0.00019178,2]
[421433798,1777644641000,-813.89,0.00019178,2]
[421433797,1777644641000,-500.0,0.00019178,2]
[421433801,1777644641000,-500.0,0.00019178,2]
[421433745,1777644641000,-500.0,0.00019178,2]
[421433773,1777644641000,-500.0,0.00019178,2]
[421433771,1777644641000,-1425.75,0.00019178,2]
[421433780,1777644641000,-500.0,0.00019178,2]
[421433768,1777644641000,-500.0,0.00019178,2]
[421433741,1777644641000,-500.0,0.00019178,2]
[421433772,1777644641000,-1442.98,0.00019178,2]
[421433747,1777644641000,-500.0,0.00019178,2]
[421433744,1777644641000,-500.0,0.00019178,2]
[421433746,1777644641000,-427.46089528,0.00019178,2]
[421433742,1777644641000,-978.47,0.00019178,2]
[421433749,1777644641000,-721.83,0.00019178,2]
[421433752,1777644641000,-600.0,0.00019178,2]
[421433751,1777644641000,-500.39169741,0.00019178,2]
[421433750,1777644641000,-2311.29,0.00019178,2]
[421433753,1777644641000,-500.0,0.00019178,2]
[421433762,1777644641000,-500.0,0.00019178,2]
[421433754,1777644641000,-500.0,0.00019178,2]
[421433757,1777644641000,-500.0,0.00019178,2]
[421433761,1777644641000,-6298.42,0.00019178,2]
[421433769,1777644641000,-500.0,0.00019178,2]
[421433770,1777644641000,-2035.58,0.00019178,2]
[421433760,1777644641000,-779.64,0.00019178,2]
[421433767,1777644641000,-643.31,0.00019178,2]
[421433765,1777644641000,-594.93,0.00019178,2]
[421433766,1777644641000,-2700.07,0.00019178,2]
[421433774,1777644641000,-788.66,0.00019178,2]
[421433763,1777644641000,-3056.45,0.00019178,2]
[421433802,1777644641000,-500.0,0.00019178,2]
[421433758,1777644641000,-1462.4,0.00019178,2]
[421433759,1777644641000,-500.0,0.00019178,2]
[421433756,1777644641000,-621.28,0.00019178,2]
[421433755,1777644641000,-500.0,0.00019178,2]
[421433764,1777644641000,-847.26,0.00019178,2]
[421433842,1777644642000,-4714.1,0.00019178,2]
[421433847,1777644642000,-1232.81,0.00019178,2]
[421433844,1777644642000,-1015.81,0.00019178,2]
[421433845,1777644642000,-500.0,0.00019178,2]
[421433843,1777644642000,-500.0,0.00019178,2]
[421433849,1777644642000,-500.0,0.00019178,2]
[421433835,1777644642000,-511.78037903,0.00019178,2]
[421433841,1777644642000,-470.46896281,0.00019178,2]
[421433840,1777644642000,-500.0,0.00019178,2]
[421433838,1777644642000,-153.77233248,0.00019178,2]
[421433832,1777644642000,-500.0,0.00019178,2]
[421433848,1777644642000,-11229.01,0.00019178,2]
[421433839,1777644642000,-500.0,0.00019178,2]
[421433851,1777644642000,-500.0,0.00019178,2]
[421433865,1777644642000,-500.0,0.00019178,2]
[421433855,1777644642000,-2234.18,0.00019178,2]
[421433856,1777644642000,-500.0,0.00019178,2]
[421433866,1777644642000,-500.0,0.00019178,2]
[421433867,1777644642000,-500.0,0.00019178,2]
[421433858,1777644642000,-500.0,0.00019178,2]
[421433863,1777644642000,-500.0,0.00019178,2]
[421433864,1777644642000,-537.44,0.00019178,2]
[421433873,1777644642000,-880.74,0.00019178,2]
[421433869,1777644642000,-500.0,0.00019178,2]
[421433861,1777644642000,-5896.28,0.00019178,2]
[421433859,1777644642000,-500.0,0.00019178,2]
[421433871,1777644642000,-572.33,0.00019178,2]
[421433830,1777644642000,-1274.67,0.00019178,2]
[421433853,1777644642000,-500.0,0.00019178,2]
[421433834,1777644642000,-500.0,0.00019178,2]
[421433804,1777644642000,-2125.76,0.00019178,2]
[421433829,1777644642000,-926.72,0.00019178,2]
[421433812,1777644642000,-500.0,0.00019178,2]
[421433876,1777644642000,-500.0,0.00019178,2]
[421433803,1777644642000,-500.0,0.00019178,2]
[421433805,1777644642000,-500.0,0.00019178,2]
[421433811,1777644642000,-1031.1,0.00019178,2]
[421433807,1777644642000,-563.85928956,0.00019178,2]
[421433808,1777644642000,-500.0,0.00019178,2]
[421433810,1777644642000,-500.0,0.00019178,2]
[421433809,1777644642000,-500.0,0.00019178,2]
[421433806,1777644642000,-500.0,0.00019178,2]
[421433813,1777644642000,-625.41,0.00019178,2]
[421433816,1777644642000,-500.0,0.00019178,2]
[421433814,1777644642000,-602.18,0.00019178,2]
[421433817,1777644642000,-500.0,0.00019178,2]
[421433815,1777644642000,-243.25783057,0.00019178,2]
[421433818,1777644642000,-6149.12,0.00019178,2]
[421433819,1777644642000,-500.0,0.00019178,2]
[421433822,1777644642000,-500.0,0.00019178,2]
[421433823,1777644642000,-556.11,0.00019178,2]
[421433825,1777644642000,-892.25,0.00019178,2]
[421433820,1777644642000,-500.0,0.00019178,2]
[421433824,1777644642000,-500.0,0.00019178,2]
[421433821,1777644642000,-550.29,0.00019178,2]
[421433827,1777644642000,-500.0,0.00019178,2]
[421433836,1777644642000,-3942.51,0.00019178,2]
[421433837,1777644642000,-2585.27,0.00019178,2]
[421433826,1777644642000,-500.0,0.00019178,2]
[421433828,1777644642000,-745.35,0.00019178,2]
[421433831,1777644642000,-500.0,0.00019178,2]
[421433833,1777644642000,-500.0,0.00019178,2]
[421433874,1777644642000,-721.17,0.00019178,2]
[421433883,1777644642000,-500.0,0.00019178,2]
[421433885,1777644642000,-578.36,0.00019178,2]
[421433916,1777644642000,-2906.84,0.00019178,2]
[421433922,1777644642000,-500.0,0.00019178,2]
[421433937,1777644642000,-533.74,0.00019178,2]
[421433947,1777644642000,-365.29652745,0.00019178,2]
[421433948,1777644642000,-500.0,0.00019178,2]
[421433939,1777644642000,-500.0,0.00019178,2]
[421433936,1777644642000,-11131.36,0.00019178,2]
[421433938,1777644642000,-500.0,0.00019178,2]
[421433949,1777644642000,-500.0,0.00019178,2]
[421433940,1777644642000,-500.0,0.00019178,2]
[421433941,1777644642000,-500.0,0.00019178,2]
[421433945,1777644642000,-10309.0,0.00019178,2]
[421433946,1777644642000,-500.0,0.00019178,2]
[421433943,1777644642000,-5161.16,0.00019178,2]
[421433942,1777644642000,-3077.59,0.00019178,2]
[421433950,1777644642000,-500.0,0.00019178,2]
[421433951,1777644642000,-500.0,0.00019178,2]
[421433952,1777644642000,-1238.2,0.00019178,2]
[421433959,1777644642000,-932.36,0.00019178,2]
[421433955,1777644642000,-605.26,0.00019178,2]
[421433963,1777644642000,-500.0,0.00019178,2]
[421433875,1777644642000,-500.0,0.00019178,2]
[421433958,1777644642000,-500.0,0.00019178,2]
[421433956,1777644642000,-500.0,0.00019178,2]
[421433962,1777644642000,-844.56,0.00019178,2]
[421433954,1777644642000,-500.0,0.00019178,2]
[421433960,1777644642000,-500.0,0.00019178,2]
[421433957,1777644642000,-856.32,0.00019178,2]
[421433961,1777644642000,-500.0,0.00019178,2]
[421433920,1777644642000,-500.0,0.00019178,2]
[421433935,1777644642000,-500.0,0.00019178,2]
[421433953,1777644642000,-995.58,0.00019178,2]
[421433914,1777644642000,-500.0,0.00019178,2]
[421433918,1777644642000,-500.0,0.00019178,2]
[421433879,1777644642000,-500.0,0.00019178,2]
[421433877,1777644642000,-2040.66,0.00019178,2]
[421433886,1777644642000,-500.0,0.00019178,2]
[421433888,1777644642000,-500.0,0.00019178,2]
[421433890,1777644642000,-500.0,0.00019178,2]
[421433881,1777644642000,-500.0,0.00019178,2]
[421433893,1777644642000,-500.0,0.00019178,2]
[421433895,1777644642000,-500.0,0.00019178,2]
[421433906,1777644642000,-5062.89,0.00019178,2]
[421433908,1777644642000,-500.0,0.00019178,2]
[421433910,1777644642000,-722.95,0.00019178,2]
[421433911,1777644642000,-16647.7,0.00019178,2]
[421433900,1777644642000,-551.05,0.00019178,2]
[421433887,1777644642000,-607.16,0.00019178,2]
[421433903,1777644642000,-500.0,0.00019178,2]
[421433904,1777644642000,-500.0,0.00019178,2]
[421433934,1777644642000,-500.0,0.00019178,2]
[421433924,1777644642000,-4731.47,0.00019178,2]
[421433928,1777644642000,-500.0,0.00019178,2]
[421433931,1777644642000,-500.0,0.00019178,2]
[421433932,1777644642000,-500.0,0.00019178,2]
[421433933,1777644642000,-14376.45,0.00019178,2]
[421433926,1777644642000,-559.36,0.00019178,2]
[421433902,1777644642000,-3170.77,0.00019178,2]
[421433897,1777644642000,-6020.29,0.00019178,2]
[421433899,1777644642000,-584.24138413,0.00019178,2]
[421433912,1777644642000,-921.7,0.00019178,2]
[421433930,1777644642000,-500.0,0.00019178,2]
[421433901,1777644642000,-563.78,0.00019178,2]
[421433999,1777644643000,-500.0,0.00019178,2]
[421433997,1777644643000,-500.0,0.00019178,2]
[421434005,1777644643000,-926.02,0.00019178,2]
[421433998,1777644643000,-994.15,0.00019178,2]
[421433994,1777644643000,-877.29,0.00019178,2]
[421434004,1777644643000,-824.72,0.00019178,2]
[421433995,1777644643000,-500.0,0.00019178,2]
[421433993,1777644643000,-860.3,0.00019178,2]
[421434006,1777644643000,-500.0,0.00019178,2]
[421434003,1777644643000,-10343.0,0.00019178,2]
[421434008,1777644643000,-500.0,0.00019178,2]
[421434001,1777644643000,-4984.89,0.00019178,2]
[421434002,1777644643000,-597.91733084,0.00019178,2]
[421434007,1777644643000,-6391.24,0.00019178,2]
[421434017,1777644643000,-500.0,0.00019178,2]
[421434018,1777644643000,-500.0,0.00019178,2]
[421434019,1777644643000,-1000.0,0.00019178,2]
[421434009,1777644643000,-1623.01,0.00019178,2]
[421434013,1777644643000,-4625.73,0.00019178,2]
[421434012,1777644643000,-500.0,0.00019178,2]
[421433985,1777644643000,-500.0,0.00019178,2]
[421434000,1777644643000,-555.99553834,0.00019178,2]
[421433987,1777644643000,-500.0,0.00019178,2]
[421433975,1777644643000,-1078.26,0.00019178,2]
[421433981,1777644643000,-500.0,0.00019178,2]
[421434016,1777644643000,-500.0,0.00019178,2]
[421433965,1777644643000,-500.0,0.00019178,2]
[421433964,1777644643000,-867.88,0.00019178,2]
[421433971,1777644643000,-5942.27,0.00019178,2]
[421433966,1777644643000,-919.06,0.00019178,2]
[421433976,1777644643000,-634.53,0.00019178,2]
[421433967,1777644643000,-500.0,0.00019178,2]
[421433977,1777644643000,-618.40196792,0.00019178,2]
[421433969,1777644643000,-500.0,0.00019178,2]
[421433970,1777644643000,-1125.71,0.00019178,2]
[421433974,1777644643000,-1854.13,0.00019178,2]
[421433968,1777644643000,-500.0,0.00019178,2]
[421433979,1777644643000,-500.0,0.00019178,2]
[421433989,1777644643000,-641.26669699,0.00019178,2]
[421433990,1777644643000,-2616.37,0.00019178,2]
[421433992,1777644643000,-500.0,0.00019178,2]
[421433978,1777644643000,-339.75606217,0.00019178,2]
[421433984,1777644643000,-1564.66,0.00019178,2]
[421433991,1777644643000,-3545.29,0.00019178,2]
[421433982,1777644643000,-500.0,0.00019178,2]
[421433986,1777644643000,-4980.13,0.00019178,2]
[421433988,1777644643000,-1107.76,0.00019178,2]
[421434011,1777644643000,-14143.34,0.00019178,2]
[421433973,1777644643000,-1262.73,0.00019178,2]
[421434014,1777644643000,-4789.9,0.00019178,2]
[421434055,1777644643000,-500.0,0.00019178,2]
[421434045,1777644643000,-1063.11,0.00019178,2]
[421434056,1777644643000,-8437.17,0.00019178,2]
[421434057,1777644643000,-500.0,0.00019178,2]
[421434054,1777644643000,-524.6,0.00019178,2]
[421434050,1777644643000,-500.0,0.00019178,2]
[421434048,1777644643000,-7490.14,0.00019178,2]
[421434047,1777644643000,-15294.08,0.00019178,2]
[421434052,1777644643000,-500.0,0.00019178,2]
[421434051,1777644643000,-500.0,0.00019178,2]
[421434046,1777644643000,-529.11,0.00019178,2]
[421434053,1777644643000,-500.0,0.00019178,2]
[421434059,1777644643000,-1051.35,0.00019178,2]
[421434062,1777644643000,-1148.95,0.00019178,2]
[421434061,1777644643000,-19412.76,0.00019178,2]
[421434060,1777644643000,-500.0,0.00019178,2]
[421434058,1777644643000,-500.0,0.00019178,2]
[421434063,1777644643000,-500.0,0.00019178,2]
[421434066,1777644643000,-500.0,0.00019178,2]
[421434064,1777644643000,-500.0,0.00019178,2]
[421434067,1777644643000,-342.76376559,0.00019178,2]
[421434010,1777644643000,-500.0,0.00019178,2]
[421434065,1777644643000,-500.0,0.00019178,2]
[421434036,1777644643000,-78289.17,0.00019178,2]
[421434049,1777644643000,-500.0,0.00019178,2]
[421434040,1777644643000,-1504.01,0.00019178,2]
[421434037,1777644643000,-585.48,0.00019178,2]
[421434021,1777644643000,-10566.26,0.00019178,2]
[421434032,1777644643000,-500.0,0.00019178,2]
[421434031,1777644643000,-500.0,0.00019178,2]
[421434022,1777644643000,-500.0,0.00019178,2]
[421434026,1777644643000,-530.17,0.00019178,2]
[421434025,1777644643000,-500.0,0.00019178,2]
[421434020,1777644643000,-2064.48,0.00019178,2]
[421434027,1777644643000,-500.0,0.00019178,2]
[421434029,1777644643000,-6882.74,0.00019178,2]
[421434015,1777644643000,-4908.2,0.00019178,2]
[421434024,1777644643000,-500.0,0.00019178,2]
[421434030,1777644643000,-500.0,0.00019178,2]
[421434042,1777644643000,-500.0,0.00019178,2]
[421434043,1777644643000,-2635.12,0.00019178,2]
[421434033,1777644643000,-559.57,0.00019178,2]
[421434044,1777644643000,-500.0,0.00019178,2]
[421434034,1777644643000,-4440.87,0.00019178,2]
[421434039,1777644643000,-500.0,0.00019178,2]
[421434041,1777644643000,-3374.5,0.00019178,2]
[421434038,1777644643000,-1142.86,0.00019178,2]
[421434028,1777644643000,-500.0,0.00019178,2]
[421434035,1777644643000,-500.0,0.00019178,2]
[421434079,1777644644000,-500.0,0.00019178,2]
[421434075,1777644644000,-500.0,0.00019178,2]
[421434074,1777644644000,-500.0,0.00019178,2]
[421434080,1777644644000,-500.0,0.00019178,2]
[421434072,1777644644000,-500.0,0.00019178,2]
[421434076,1777644644000,-16554.07,0.00019178,2]
[421434073,1777644644000,-500.0,0.00019178,2]
[421434071,1777644644000,-157.23623441,0.00019178,2]
[421434077,1777644644000,-500.0,0.00019178,2]
[421434078,1777644644000,-8464.14,0.00019178,2]
[421434081,1777644644000,-679.49,0.00019178,2]
[421434092,1777644644000,-798.07,0.00019178,2]
[421434083,1777644644000,-552.14552899,0.00019178,2]
[421434084,1777644644000,-637.0,0.00019178,2]
[421434085,1777644644000,-1348.33,0.00019178,2]
[421434087,1777644644000,-18817.58945345,0.00019178,2]
[421434089,1777644644000,-1947.75,0.00019178,2]
[421434086,1777644644000,-500.0,0.00019178,2]
[421434088,1777644644000,-438.77054655,0.00019178,2]
[421434090,1777644644000,-500.0,0.00019178,2]
[421434091,1777644644000,-500.0,0.00019178,2]
[421434093,1777644644000,-1490.74374645,0.00019178,2]
[421434094,1777644644000,-869.9715,0.00019178,2]
[421434082,1777644644000,-3841.41,0.00019178,2]
[421434183,1777645832000,-126.94561956,0.0001194,2]
[421434175,1777645832000,-5000.0,0.00011821,2]
[421434177,1777645832000,-41.30301227,0.0001194,2]
[421434184,1777645832000,-210.01977176,0.00012289,2]
[421434187,1777645832000,-653.6374935,0.00015038,2]
[421434186,1777645832000,-198.53338556,0.0001394,2]
[421434190,1777645832000,-2464.24799859,0.00017099,2]
[421434188,1777645832000,-228.81813929,0.0001594,2]
[421434185,1777645832000,-1000.0,0.00013699,2]
[421434189,1777645832000,-300.0,0.00017098,2]
[421434291,1777645840000,-5000.0,0.00016838,2]
[421434292,1777645840000,-263.55109567,0.00017008,2]
[421434305,1777645840000,-70364.61894492,0.00017107,2]
[421434304,1777645840000,-268.67639143,0.00017106,2]
[421434298,1777645840000,-500.0,0.00017106,2]
[421434294,1777645840000,-439.70790504,0.00017099,2]
[421434296,1777645840000,-150.97017998,0.000171,3]
[421434302,1777645840000,-384.07589576,0.00017106,2]
[421434300,1777645840000,-411.98302034,0.00017106,2]
[421434618,1777645843000,-7685.9,0.00017107,2]
[421434603,1777645843000,-11239.21160683,0.00017107,2]
[421434595,1777645843000,-460.5715849,0.00017107,2]
[421434833,1777645847000,-12851.32151757,0.00017107,2]
[421434842,1777645858000,2129.28809085,7.6e-05,2]
[421434849,1777645892000,-3105.0,8.6e-05,2]
[421434883,1777647032000,-4924.84253217,0.00011891,2]
[421434884,1777647032000,-75.15746783,0.00012011,2]
[421434902,1777647038000,-4924.84253217,0.00012011,2]
[421434928,1777647038000,-511.98302034,0.00016904,2]
[421434929,1777647038000,-186.38696155,0.00016904,2]
[421434918,1777647038000,-10000.0,0.00014487,2]
[421434916,1777647038000,-206.03981237,0.00014194,2]
[421434915,1777647038000,-15539.8,0.00014172,2]
[421434911,1777647038000,-500.0,0.00014172,2]
[421434912,1777647038000,-4346.0,0.00014172,2]
[421434920,1777647038000,-600.0,0.00014742,2]
[421434910,1777647038000,-1000.0,0.00013699,2]
[421434905,1777647038000,-1200.0,0.00012254,2]
[421434907,1777647038000,-200.0,0.00012379,2]
[421434914,1777647038000,-500.0,0.00014172,2]
[421434909,1777647038000,-300.0,0.00013449,2]
[421434908,1777647038000,-245.88,0.00012379,7]
[421434906,1777647038000,-300.0,0.00012254,2]
[421434904,1777647038000,-300.0,0.00012254,2]
[421434903,1777647038000,-174.61001049,0.00012193,2]
[421434913,1777647038000,-500.0,0.00014172,2]
[421434917,1777647038000,-263.53756428,0.00014272,2]
[421434924,1777647038000,-152.0,0.00016664,7]
[421434921,1777647038000,-200.0,0.00015114,2]
[421434943,1777647038000,-500.0,0.00016905,2]
[421434941,1777647038000,-500.0,0.00016905,2]
[421434940,1777647038000,-500.0,0.00016905,2]
[421434942,1777647038000,-500.0,0.00016905,2]
[421434939,1777647038000,-500.0,0.00016905,2]
[421434937,1777647038000,-334.55217183,0.00016905,2]
[421434919,1777647038000,-2726.55,0.00014587,2]
[421434935,1777647038000,-268.67639143,0.00016905,2]
[421434936,1777647038000,-500.0,0.00016905,2]
[421434938,1777647038000,-500.0,0.00016905,2]
[421434933,1777647038000,-434.73953274,0.00016904,2]
[421434931,1777647038000,-384.07589576,0.00016904,2]
[421434923,1777647038000,-720.0,0.00016216,2]
[421434925,1777647038000,-393.375,0.000168,2]
[421434927,1777647038000,-1347.95100669,0.00016862,2]
[421434922,1777647038000,-237.46961426,0.00016194,2]
[421434930,1777647038000,-500.0,0.00016904,2]
[421434932,1777647038000,-500.0,0.00016904,2]
[421434934,1777647038000,-200.0,0.00016904,2]
[421434926,1777647038000,-1309.58009709,0.00016862,2]
[421434944,1777647039000,-199.66340748,0.00016905,2]
[421435224,1777647046000,-500.0,0.00016905,2]
[421435219,1777647046000,-519.65805425,0.00016905,2]
[421435218,1777647046000,-300.33659252,0.00016905,2]
[421435220,1777647046000,-500.0,0.00016905,2]
[421435221,1777647046000,-500.0,0.00016905,2]
[421435222,1777647046000,-500.0,0.00016905,2]
[421435230,1777647046000,-34368.58561258,0.00016906,2]
[421435223,1777647046000,-500.0,0.00016905,2]
[421435229,1777647046000,-400.0,0.00016905,2]
[421435228,1777647046000,-500.0,0.00016905,2]
[421435225,1777647046000,-500.0,0.00016905,2]
[421435227,1777647046000,-500.0,0.00016905,2]
[421435226,1777647046000,-500.0,0.00016905,2]